fUST/lending_fUST_20241230
["ID","MTS","AMOUNT","RATE_DAILY","PERIOD"]
[347086463,1735492233889,-201.20617897,0.00016028,2]
[347086464,1735492233899,-599.40833339,0.00016028,2]
[347086465,1735492233908,-500.0,0.00016029,2]
[347086466,1735492233917,-7138.35,0.00016029,2]
[347086467,1735492233927,-500.0,0.00016029,2]
[347086468,1735492233936,-860.37,0.00016029,2]
[347086469,1735492233945,-832.1,0.00016029,2]
[347086470,1735492233955,-500.0,0.0001603,2]
[347086471,1735492233964,-500.0,0.00016303,2]
[347086472,1735492233973,-7138.35,0.00016303,2]
[347086473,1735492233983,-500.0,0.00016303,2]
[347086474,1735492233992,-860.37,0.00016303,2]
[347086475,1735492234001,-832.1,0.00016303,2]
[347086476,1735492234011,-500.0,0.00016304,2]
[347086477,1735492234021,-623.34273011,0.00016438,2]
[347086478,1735492234030,-179.5816327,0.00016443,2]
[347086479,1735492234039,-394.0,0.000165,2]
[347086480,1735492234048,-7138.35,0.00016577,2]
[347086481,1735492234058,-500.0,0.00016577,2]
[347086482,1735492234067,-860.37,0.00016577,2]
[347086483,1735492234076,-832.1,0.00016577,2]
[347086484,1735492234086,-500.0,0.00016578,2]
[347086485,1735492234095,-7138.35,0.00016851,2]
[347086486,1735492234105,-500.0,0.00016851,2]
[347086487,1735492234114,-860.37,0.00016851,2]
[347086488,1735492234123,-832.1,0.00016851,2]
[347086489,1735492234132,-500.0,0.00016852,2]
[347086490,1735492234141,-248.072,0.00017,2]
[347086491,1735492234150,-7138.35,0.00017125,2]
[347086492,1735492234160,-500.0,0.00017125,2]
[347086493,1735492234169,-860.37,0.00017125,2]
[347086494,1735492234178,-832.1,0.00017125,2]
[347086495,1735492234188,-500.0,0.00017126,2]
[347086496,1735492234197,-7138.35,0.00017399,2]
[347086497,1735492234207,-500.0,0.00017399,2]
[347086498,1735492234217,-860.37,0.00017399,2]
[347086499,1735492234226,-832.1,0.00017399,2]
[347086500,1735492234235,-528.1,0.000174,2]
[347086501,1735492234246,-7138.35,0.00017673,2]
[347086502,1735492234256,-500.0,0.00017673,2]
[347086503,1735492234265,-860.37,0.00017673,2]
[347086504,1735492234275,-832.1,0.00017673,2]
[347086505,1735492234284,-1218.79,0.000178,7]
[347086506,1735492234294,-7138.35,0.00017947,2]
[347086507,1735492234304,-500.0,0.00017947,2]
[347086508,1735492234313,-860.37,0.00017947,2]
[347086509,1735492234322,-832.1,0.00017947,2]
[347086510,1735492234331,-500.0,0.00017999,2]
[347086511,1735492234340,-5164.75756255,0.00018,2]
[347086512,1735492234350,-7138.35,0.00018221,2]
[347086513,1735492234359,-171.08,0.00018221,2]
[347086514,1735492234368,-860.37,0.00018221,2]
[347086515,1735492234378,-832.1,0.00018221,2]
[347086516,1735492234387,-2118.59997659,0.00018396,2]
[347086517,1735492234396,-7138.35,0.00018495,2]
[347086518,1735492234406,-860.37,0.00018495,2]
[347086519,1735492234415,-832.1,0.00018495,2]
[347086520,1735492234425,-179.5816327,0.000186,2]
[347086521,1735492234435,-1200.0,0.00018601,2]
[347086522,1735492234445,-658.906,0.00018601,2]
[347086523,1735492234454,-151.0,0.00018601,2]
[347086524,1735492234464,-236.68195386,0.0001863,2]
[347086525,1735492234473,-7138.35,0.00018769,2]
[347086526,1735492234483,-860.37,0.00018769,2]
[347086527,1735492234493,-832.1,0.00018769,2]
[347086528,1735492234505,-456.43828674,0.000189,2]
[347086529,1735492234515,-2118.59997659,0.00018987,2]
[347086530,1735492234524,-302.57643837,0.00019,2]
[347086531,1735492234534,-7138.35,0.00019043,2]
[347086532,1735492234543,-860.37,0.00019043,2]
[347086533,1735492234552,-832.1,0.00019043,2]
[347086534,1735492234560,-500.0,0.00019178,2]
[347086535,1735492234570,-286.27435087,0.00019178,2]
[347086536,1735492234579,-164.984708,0.00019178,2]
[347086537,1735492234591,-302.57643837,0.0001919,2]
[347086538,1735492234600,-7138.35,0.00019317,2]
[347086539,1735492234610,-860.37,0.00019317,2]
[347086540,1735492234619,-832.1,0.00019317,2]
[347086541,1735492234629,-402.27433189,0.0001938,2]
[347086542,1735492234638,-394.0,0.000195,2]
[347086543,1735492234648,-2118.59997659,0.00019577,2]
[347086544,1735492234657,-7138.35,0.00019591,2]
[347086545,1735492234667,-860.37,0.00019591,2]
[347086546,1735492234678,-832.1,0.00019591,2]
[347086547,1735492234688,-465.62945989,0.00019605,2]
[347086548,1735492234698,-616.268,0.0001981,2]
[347086549,1735492234707,-7138.35,0.00019865,2]
[347086550,1735492234716,-860.37,0.00019865,2]
[347086551,1735492234725,-166.434,0.0002,2]
[347086552,1735492234735,-9448.91283645,0.0002,3]
[347086553,1735492234744,-850.72723967,0.00020076,2]
[347086554,1735492234754,-7138.35,0.00020139,2]
[347086555,1735492234763,-860.37,0.00020139,2]
[347086556,1735492234772,-2118.59997659,0.00020168,2]
[347086557,1735492234782,-7138.35,0.00020413,2]
[347086558,1735492234791,-860.5382,0.00020413,2]
[347086559,1735492234800,-400.0,0.00020447,2]
[347086560,1735492234810,-158.726957,0.00020521,2]
[347086561,1735492234819,-4614.68623448,0.00020661,2]
[347086562,1735492234828,-7138.35,0.00020687,2]
[347086563,1735492234837,-326.367686,0.000207,2]
[347086564,1735492234846,-5164.75756255,0.0002075,3]
[347086565,1735492234856,-5164.75756255,0.0002075,3]
[347086566,1735492234866,-179.5816327,0.00020758,2]
[347086567,1735492234875,-2118.59997659,0.00020758,2]
[347086568,1735492234884,-17675.95107442,0.00020758,3]
[347086569,1735492234894,-5164.75756255,0.00020758,3]
[347086570,1735492234903,-2000.0,0.000208,2]
[347086571,1735492234912,-500.0,0.00020807,2]
[347086572,1735492234921,-150.2,0.00020846,10]
[347086573,1735492234931,-150.2,0.00020846,2]
[347086574,1735492234940,-150.2,0.00020846,10]
[347086575,1735492234950,-500.0,0.00020846,10]
[347086576,1735492234959,-500.0,0.00020846,10]
[347086577,1735492234968,-150.2,0.00020846,2]
[347086578,1735492234978,-150.2,0.00020846,10]
[347086579,1735492234987,-500.0,0.00020846,10]
[347086580,1735492234997,-150.2,0.00020846,10]
[347086581,1735492235007,-150.2,0.00020846,10]
[347086582,1735492235016,-500.0,0.00020846,10]
[347086583,1735492235025,-150.2,0.00020846,2]
[347086584,1735492235034,-150.2,0.00020846,10]
[347086585,1735492235043,-150.2,0.00020846,10]
[347086586,1735492235052,-150.2,0.00020846,10]
[347086587,1735492235062,-236.02,0.00020848,2]
[347086588,1735492235071,-1144.02640898,0.00020858,2]
[347086589,1735492235080,-27205.41747644,0.00020858,2]
[347086590,1735492235089,-151.0,0.00020858,2]
[347086591,1735492235098,-176.964705,0.00020858,2]
[347086592,1735492235108,-209.821432,0.00020858,2]
[347086593,1735492235117,-303.144774,0.00020858,2]
[347086594,1735492235126,-303.144774,0.00020858,2]
[347086595,1735492235136,-303.144774,0.00020858,2]
[347086596,1735492235145,-303.144774,0.00020858,2]
[347086597,1735492235154,-303.144774,0.00020858,2]
[347086598,1735492235164,-303.144774,0.00020858,2]
[347086599,1735492235173,-303.144774,0.00020858,2]
[347086600,1735492235183,-303.144774,0.00020858,2]
[347086601,1735492235192,-303.144774,0.00020858,2]
[347086602,1735492235202,-303.144774,0.00020858,2]
[347086603,1735492235211,-303.144774,0.00020858,2]
[347086604,1735492235221,-303.144774,0.00020858,2]
[347086605,1735492235231,-303.144774,0.00020858,2]
[347086606,1735492235240,-303.144774,0.00020858,2]
[347086607,1735492235249,-303.144774,0.00020858,2]
[347086608,1735492235260,-303.144774,0.00020858,2]
[347086609,1735492235269,-303.144774,0.00020858,2]
[347086610,1735492235280,-303.144774,0.00020858,2]
[347086611,1735492235290,-303.144774,0.00020858,2]
[347086612,1735492235299,-303.144764,0.00020858,2]
[347086613,1735492235308,-140347.94800603,0.00020858,10]
[347086614,1735492235366,-1166604.870117,0.00020858,10]
[347086615,1735492235378,-583.17665844,0.00020858,10]
[347086616,1735492235390,-1868.9,0.00020858,10]
[347086617,1735492235401,-54014.52564862,0.00020858,10]
[347086618,1735492235412,-16833.48676578,0.00020858,10]
[347086683,1735492238755,-832.1,0.00019865,2]
[347086685,1735492238767,-832.1,0.00020139,2]
[347086687,1735492238776,-832.1,0.00020413,2]
[347086689,1735492238785,-832.31211037,0.00020687,2]
[347086691,1735492238795,-151.0,0.00020858,2]
[347086693,1735492238804,-111677.10142811,0.00020858,10]
[347086696,1735492238822,-73010.94930292,0.00020858,10]
[347086698,1735492238834,-663.3424107,0.00020858,10]
[347086700,1735492238845,-671.16,0.00020858,10]
[347086871,1735492240685,-37381.99924998,0.00020858,10]
[347086873,1735492240697,-29219.19418382,0.00020858,10]
[347086875,1735492240709,-6147.780505,0.00020858,10]
[347086878,1735492240721,-27280.74029555,0.00020858,10]
[347087193,1735492243640,-328.21854284,0.00013973,2]
[347087425,1735492245804,-71.78145716,0.00013973,2]
[347087427,1735492245814,-672.31184422,0.00020858,10]
[347087429,1735492245825,-365.66332939,0.00020858,10]
[347087516,1735492246728,-1200.0,0.00019407,2]
[347087518,1735492246737,-336.82880949,0.00020447,2]
[347087521,1735492246749,-63.17119051,0.00020447,2]
[347087523,1735492246759,-150.2,0.00020858,10]
[347087525,1735492246769,-123037.59370451,0.00020858,10]
[347087528,1735492246788,-3346.21734558,0.00020858,10]
[347087530,1735492246800,-5822.28080256,0.00020858,10]
[347089429,1735492266169,816.887,0.00025,120]
[347090690,1735492343671,500.0,9.182e-05,2]
[347090691,1735492345507,500.0,9.456e-05,2]
[347090692,1735492363591,500.0,9.182e-05,2]
[347090693,1735492364794,500.0,9.456e-05,2]
[347090694,1735492365762,500.0,9.73e-05,2]
[347090695,1735492366969,500.0,0.00010004,2]
[347090696,1735492367725,500.0,0.00010278,2]
[347090697,1735492368351,500.0,0.00010552,2]
[347090698,1735492369036,500.0,0.00010826,2]
[347090699,1735492371051,500.0,0.000111,2]
[347090700,1735492371862,500.0,0.00011374,2]
[347090701,1735492373291,500.0,0.00011648,2]
[347090702,1735492373951,500.0,0.00011922,2]
[347090710,1735492728646,345.591757,0.00025,120]
[347090719,1735492896757,-608.35474716,0.00025645,120]
[347090720,1735492896834,-4496.62044468,0.00025645,120]
[347090721,1735492897196,-608.35474716,0.00025649,120]
[347090792,1735493431815,-263.59,0.00012363,2]
[347090794,1735493431825,-835.03680086,0.000125,2]
[347090796,1735493431834,-10000.0,0.00012586,2]
[347090798,1735493431843,-477.3861515,0.00012938,2]
[347090800,1735493431853,-263.59,0.00013,2]
[347090802,1735493431863,-213.6329361,0.00013699,2]
[347090804,1735493431872,-376.492054,0.00013699,2]
[347090806,1735493431882,-210.63015779,0.00013824,2]
[347090808,1735493431891,-300.0,0.00013829,2]
[347090810,1735493431901,-482.27661,0.00013829,2]
[347090812,1735493431910,-500.0,0.0001383,2]
[347090814,1735493431920,-500.0,0.0001383,2]
[347090816,1735493431930,-500.0,0.0001383,2]
[347090818,1735493431939,-500.0,0.0001383,2]
[347090820,1735493431952,-500.0,0.0001383,2]
[347090822,1735493431962,-203.70746415,0.0001383,2]
[347090824,1735493431972,-500.0,0.0001383,2]
[347090826,1735493431981,-500.0,0.0001383,2]
[347090828,1735493431991,-500.0,0.0001383,2]
[347090830,1735493432001,-500.0,0.0001383,2]
[347090832,1735493432011,-500.0,0.0001383,2]
[347090834,1735493432021,-560.25071381,0.0001383,2]
[347090835,1735493432030,-500.0,0.0001383,2]
[347090837,1735493432040,-500.0,0.0001383,2]
[347090851,1735493432158,-500.0,0.0001383,2]
[347090853,1735493432168,-500.0,0.0001383,2]
[347090855,1735493432177,-500.0,0.0001383,2]
[347090857,1735493432186,-500.0,0.0001383,2]
[347090859,1735493432195,-500.0,0.0001383,2]
[347090861,1735493432205,-300.14790039,0.0001383,2]
[347090863,1735493432215,-267.22105755,0.0001383,2]
[347090865,1735493432229,-500.0,0.0001383,2]
[347090867,1735493432238,-500.0,0.0001383,2]
[347090869,1735493432249,-500.0,0.0001383,2]
[347090871,1735493432258,-500.0,0.0001383,2]
[347090873,1735493432267,-500.0,0.0001383,2]
[347090875,1735493432276,-592.72706578,0.0001383,2]
[347090877,1735493432286,-500.0,0.0001383,2]
[347090879,1735493432295,-500.0,0.0001383,2]
[347090881,1735493432304,-363.31355604,0.0001383,2]
[347090883,1735493432314,-500.0,0.0001383,2]
[347090885,1735493432323,-500.0,0.0001383,2]
[347090887,1735493432332,-500.0,0.0001383,2]
[347090889,1735493432341,-500.0,0.0001383,2]
[347090891,1735493432350,-500.0,0.0001383,2]
[347090893,1735493432359,-500.0,0.0001383,2]
[347090895,1735493432368,-500.0,0.0001383,2]
[347090897,1735493432377,-500.0,0.0001383,2]
[347090899,1735493432386,-500.0,0.0001383,2]
[347090901,1735493432395,-500.0,0.0001383,2]
[347090903,1735493432405,-500.0,0.0001383,2]
[347090905,1735493432414,-500.0,0.0001383,2]
[347090907,1735493432424,-500.0,0.0001383,2]
[347090909,1735493432434,-500.0,0.0001383,2]
[347090911,1735493432444,-500.0,0.0001383,2]
[347090913,1735493432454,-500.0,0.0001383,2]
[347090915,1735493432463,-500.0,0.0001383,2]
[347090917,1735493432473,-500.0,0.0001383,2]
[347090918,1735493432482,-500.0,0.0001383,2]
[347090921,1735493432492,-500.0,0.0001383,2]
[347090922,1735493432501,-500.0,0.0001383,2]
[347090924,1735493432511,-500.0,0.0001383,2]
[347090927,1735493432521,-500.0,0.0001383,2]
[347090928,1735493432530,-500.0,0.0001383,2]
[347090930,1735493432540,-500.0,0.0001383,2]
[347090932,1735493432549,-500.0,0.0001383,2]
[347090934,1735493432558,-500.0,0.0001383,2]
[347090936,1735493432568,-500.0,0.0001383,2]
[347090939,1735493432580,-500.0,0.0001383,2]
[347090941,1735493432589,-500.0,0.0001383,2]
[347090943,1735493432598,-500.0,0.0001383,2]
[347090945,1735493432607,-500.0,0.00013833,2]
[347090946,1735493432617,-500.0,0.00013833,2]
[347090948,1735493432626,-500.0,0.00013833,2]
[347090950,1735493432635,-500.0,0.00013833,2]
[347090953,1735493432646,-500.0,0.00013833,2]
[347090954,1735493432655,-500.0,0.00013833,2]
[347090957,1735493432664,-500.0,0.00013833,2]
[347090958,1735493432674,-500.0,0.00013833,2]
[347090961,1735493432684,-500.0,0.00013833,2]
[347090962,1735493432693,-500.0,0.00013833,2]
[347090965,1735493432703,-500.0,0.00013833,2]
[347090967,1735493432714,-500.0,0.00013833,2]
[347090969,1735493432724,-500.0,0.00013833,2]
[347090970,1735493432733,-500.0,0.00013833,2]
[347090972,1735493432743,-500.0,0.00013833,2]
[347090975,1735493432753,-500.0,0.00013833,2]
[347090976,1735493432762,-500.0,0.00013833,2]
[347090979,1735493432771,-500.0,0.00013833,2]
[347090981,1735493432781,-500.0,0.00013833,2]
[347090983,1735493432790,-294.91,0.00013833,2]
[347090985,1735493432799,-500.0,0.00013834,2]
[347090987,1735493432809,-500.0,0.00013834,2]
[347090989,1735493432819,-500.0,0.00013834,2]
[347090991,1735493432829,-500.0,0.00013835,2]
[347090993,1735493432839,-500.0,0.00013835,2]
[347090995,1735493432847,-500.0,0.00013835,2]
[347090997,1735493432857,-558.34878525,0.00013835,2]
[347090998,1735493432866,-500.0,0.00013835,2]
[347091001,1735493432875,-500.0,0.00013835,2]
[347091002,1735493432885,-500.0,0.00013835,2]
[347091005,1735493432894,-500.0,0.00013835,2]
[347091007,1735493432905,-500.0,0.00013835,2]
[347091009,1735493432914,-500.0,0.00013835,2]
[347091011,1735493432923,-500.0,0.00013835,2]
[347091013,1735493432932,-500.0,0.00013835,2]
[347091015,1735493432942,-168.0,0.00013835,2]
[347091017,1735493432951,-500.0,0.00013835,2]
[347091019,1735493432960,-505.65591794,0.00013835,2]
[347091021,1735493432969,-500.0,0.00013835,2]
[347091023,1735493432979,-500.0,0.00013835,2]
[347091025,1735493432988,-500.0,0.00013835,2]
[347091027,1735493432998,-500.0,0.00013835,2]
[347091029,1735493433008,-500.0,0.00013835,2]
[347091031,1735493433018,-500.0,0.00013835,2]
[347091033,1735493433027,-500.0,0.00013835,2]
[347091035,1735493433037,-500.0,0.00013835,2]
[347091037,1735493433047,-500.0,0.00013835,2]
[347091039,1735493433056,-500.0,0.00013835,2]
[347091041,1735493433066,-500.0,0.00013835,2]
[347091043,1735493433075,-500.0,0.00013835,2]
[347091045,1735493433084,-304.34378273,0.00013835,2]
[347091047,1735493433094,-1096.0,0.00013835,2]
[347091049,1735493433103,-500.0,0.00013835,2]
[347091051,1735493433113,-500.0,0.00013835,2]
[347091053,1735493433122,-500.0,0.00013835,2]
[347091054,1735493433132,-2159.92,0.00013835,2]
[347091056,1735493433142,-500.0,0.00013835,2]
[347091058,1735493433151,-500.0,0.00013835,2]
[347091060,1735493433160,-500.0,0.00013835,2]
[347091062,1735493433170,-500.0,0.00013835,2]
[347091064,1735493433179,-422.88677822,0.00013836,2]
[347091066,1735493433188,-500.0,0.00013836,2]
[347091068,1735493433198,-500.0,0.00013836,2]
[347091070,1735493433207,-500.0,0.00013836,2]
[347091072,1735493433217,-500.0,0.00013836,2]
[347091074,1735493433227,-1487.15,0.00013836,2]
[347091077,1735493433237,-500.0,0.00013836,2]
[347091079,1735493433247,-500.0,0.00013836,2]
[347091081,1735493433257,-500.0,0.00013836,2]
[347091083,1735493433266,-500.0,0.00013836,2]
[347091085,1735493433276,-500.0,0.00013837,2]
[347091087,1735493433285,-500.0,0.00013837,2]
[347091088,1735493433295,-500.0,0.00013837,2]
[347091091,1735493433305,-500.0,0.00013837,2]
[347091092,1735493433314,-500.0,0.00013837,2]
[347091094,1735493433323,-500.0,0.00013837,2]
[347091096,1735493433334,-500.0,0.00013838,2]
[347091099,1735493433343,-400.0,0.00013973,2]
[347091100,1735493433353,-1307.64687923,0.00014,2]
[347091102,1735493433363,-500.0,0.00014104,2]
[347091104,1735493433372,-500.0,0.00014104,2]
[347091106,1735493433381,-500.0,0.00014104,2]
[347091108,1735493433392,-500.0,0.00014104,2]
[347091111,1735493433402,-500.0,0.00014107,2]
[347091113,1735493433411,-500.0,0.00014107,2]
[347091114,1735493433420,-500.0,0.00014107,2]
[347091116,1735493433429,-500.0,0.00014107,2]
[347091119,1735493433439,-500.0,0.00014107,2]
[347091121,1735493433448,-500.0,0.00014107,2]
[347091123,1735493433459,-500.0,0.00014107,2]
[347091125,1735493433468,-500.0,0.00014107,2]
[347091126,1735493433478,-500.0,0.00014107,2]
[347091128,1735493433487,-500.0,0.00014107,2]
[347091130,1735493433497,-500.0,0.00014107,2]
[347091133,1735493433506,-500.0,0.00014107,2]
[347091134,1735493433516,-500.0,0.00014107,2]
[347091136,1735493433525,-500.0,0.00014107,2]
[347091138,1735493433534,-500.0,0.00014107,2]
[347091140,1735493433544,-500.0,0.00014107,2]
[347091142,1735493433554,-500.0,0.00014107,2]
[347091144,1735493433563,-508.4,0.00014107,2]
[347091146,1735493433573,-500.0,0.00014107,2]
[347091149,1735493433582,-500.0,0.00014108,2]
[347091151,1735493433600,-500.0,0.00014108,2]
[347091154,1735493433611,-500.0,0.00014108,2]
[347091156,1735493433620,-500.0,0.00014109,2]
[347091158,1735493433630,-500.0,0.00014109,2]
[347091160,1735493433640,-2159.92,0.00014109,2]
[347091162,1735493433649,-500.0,0.00014109,2]
[347091164,1735493433659,-500.0,0.00014109,2]
[347091166,1735493433668,-500.0,0.0001411,2]
[347091168,1735493433678,-500.0,0.0001411,2]
[347091170,1735493433687,-1487.15,0.0001411,2]
[347091172,1735493433698,-648.48,0.0001411,2]
[347091173,1735493433707,-500.0,0.00014111,2]
[347091174,1735493433716,-500.0,0.00014111,2]
[347091175,1735493433726,-500.0,0.00014111,2]
[347091176,1735493433736,-500.0,0.00014111,2]
[347091177,1735493433745,-500.0,0.00014111,2]
[347091178,1735493433755,-500.0,0.00014112,2]
[347091179,1735493433764,-500.0,0.00014378,2]
[347091180,1735493433774,-341.6,0.00014378,2]
[347091181,1735493433783,-276.4483015,0.00014381,2]
[347091182,1735493433792,-500.0,0.00014381,2]
[347091183,1735493433802,-500.0,0.00014381,2]
[347091184,1735493433812,-500.0,0.00014381,2]
[347091185,1735493433821,-500.0,0.00014381,2]
[347091186,1735493433830,-500.0,0.00014381,2]
[347091187,1735493433839,-165.94,0.00014381,2]
[347091188,1735493433849,-500.0,0.00014383,2]
[347091189,1735493433858,-500.0,0.00014383,2]
[347091190,1735493433868,-2159.92,0.00014383,2]
[347091191,1735493433877,-500.0,0.00014384,2]
[347091192,1735493433886,-500.0,0.00014384,2]
[347091193,1735493433896,-1487.15,0.00014384,2]
[347091194,1735493433907,-500.0,0.00014384,2]
[347091195,1735493433917,-500.0,0.00014385,2]
[347091197,1735493433926,-500.0,0.00014386,2]
[347091199,1735493433936,-500.0,0.00014579,2]
[347091201,1735493433947,-2362.0,0.00014641,2]
[347091203,1735493433958,-150.0,0.00014641,2]
[347091205,1735493433968,-394.0,0.00014641,2]
[347091207,1735493433981,-2127.0,0.00014641,2]
[347091209,1735493433991,-500.0,0.00014648,2]
[347091211,1735493434000,-500.0,0.00014652,2]
[347091213,1735493434010,-500.0,0.00014655,2]
[347091215,1735493434020,-500.0,0.00014655,2]
[347091217,1735493434029,-500.0,0.00014655,2]
[347091219,1735493434039,-500.0,0.00014655,2]
[347091221,1735493434049,-500.0,0.00014657,2]
[347091223,1735493434058,-458.22,0.00014657,2]
[347091225,1735493434068,-2159.92,0.00014657,2]
[347091227,1735493434078,-500.0,0.00014658,2]
[347091229,1735493434087,-500.0,0.00014658,2]
[347091231,1735493434097,-1487.15,0.00014658,2]
[347091233,1735493434107,-500.0,0.00014659,2]
[347091235,1735493434116,-500.0,0.0001466,2]
[347091237,1735493434126,-500.0,0.00014926,2]
[347091239,1735493434135,-500.0,0.00014929,2]
[347091241,1735493434144,-500.0,0.00014929,2]
[347091243,1735493434154,-500.0,0.00014929,2]
[347091245,1735493434163,-469.59,0.00014929,2]
[347091247,1735493434172,-2159.92,0.00014931,2]
[347091249,1735493434182,-500.0,0.00014932,2]
[347091252,1735493434191,-500.0,0.00014932,2]
[347091254,1735493434201,-1487.15,0.00014932,2]
[347091256,1735493434211,-500.0,0.00014933,2]
[347091258,1735493434221,-500.0,0.00014934,2]
[347091260,1735493434231,-19451.47836055,0.00014988,2]
[347091262,1735493434240,-6720.26105432,0.00014993,2]
[347091264,1735493434257,-12731.21730623,0.00014993,2]
[347091266,1735493434266,-19451.47836055,0.00014997,2]
[347091269,1735493434276,-643.25929191,0.00015127,2]
[347091271,1735493434285,-420.0,0.00015153,2]
[347091273,1735493434295,-1000.0,0.00015196,2]
[347091275,1735493434304,-293.91272411,0.000152,2]
[347091276,1735493434313,-500.0,0.00015203,2]
[347091279,1735493434323,-500.0,0.00015203,2]
[347091281,1735493434332,-500.0,0.00015203,2]
[347091283,1735493434342,-2159.92,0.00015205,2]
[347091285,1735493434351,-500.0,0.00015206,2]
[347091287,1735493434361,-232.70534757,0.00015206,2]
[347091289,1735493434370,-1487.15,0.00015206,2]
[347091291,1735493434379,-500.0,0.00015206,2]
[347091293,1735493434388,-500.0,0.00015206,2]
[347091295,1735493434397,-500.0,0.00015206,2]
[347091297,1735493434407,-500.0,0.00015206,2]
[347091299,1735493434416,-500.0,0.00015206,2]
[347091301,1735493434425,-500.0,0.00015206,2]
[347091303,1735493434435,-504.44969084,0.00015206,2]
[347091305,1735493434444,-500.0,0.00015207,2]
[347091307,1735493434453,-500.0,0.00015208,2]
[347091309,1735493434463,-500.0,0.00015477,2]
[347091311,1735493434473,-500.0,0.00015477,2]
[347091313,1735493434482,-500.0,0.00015477,2]
[347091315,1735493434492,-2159.92,0.00015479,2]
[347091317,1735493434501,-500.69687074,0.0001548,2]
[347091319,1735493434510,-1487.15,0.0001548,2]
[347091321,1735493434519,-500.0,0.0001548,2]
[347091323,1735493434528,-500.0,0.00015481,2]
[347091325,1735493434537,-500.0,0.00015482,2]
[347091327,1735493434547,-500.0,0.00015751,2]
[347091329,1735493434557,-179.42,0.00015751,2]
[347091331,1735493434566,-500.0,0.00015751,2]
[347091333,1735493434576,-2159.92,0.00015753,2]
[347091335,1735493434586,-1487.15,0.00015754,2]
[347091337,1735493434595,-500.0,0.00015755,2]
[347091339,1735493434604,-500.0,0.00015756,2]
[347091341,1735493434614,-500.0,0.00016025,2]
[347091343,1735493434624,-500.0,0.00016025,2]
[347091345,1735493434633,-2159.92,0.00016027,2]
[347091347,1735493434642,-1487.15,0.00016028,2]
[347091349,1735493434651,-500.0,0.00016029,2]
[347091362,1735493434762,-500.0,0.0001603,2]
[347091364,1735493434772,-998.40255591,0.00016197,2]
[347091366,1735493434781,-1073.34628191,0.00016198,2]
[347091368,1735493434790,-500.0,0.00016299,2]
[347091370,1735493434800,-2159.92,0.00016301,2]
[347091372,1735493434809,-1487.15,0.00016302,2]
[347091374,1735493434818,-500.0,0.00016303,2]
[347091376,1735493434827,-500.0,0.00016304,2]
[347091378,1735493434836,-1039.04963986,0.0001643,2]
[347091380,1735493434846,-200.0,0.00016438,2]
[347091382,1735493434856,-200.0,0.00016438,2]
[347091384,1735493434865,-308.24090254,0.00016438,2]
[347091386,1735493434874,-500.0,0.00016438,2]
[347091388,1735493434884,-500.0,0.00016438,2]
[347091390,1735493434893,-490.1943793,0.00016438,2]
[347091392,1735493434905,-506.05751595,0.00016438,2]
[347091394,1735493434915,-163.96468304,0.00016478,2]
[347091396,1735493434924,-500.0,0.00016573,2]